bitfinex-derivatives/quotes_SOLF0:USTF0_20250529
["timestamp","ask_amount","ask_price","bid_price","bid_amount"]
[1748483508106,5.7697,173.27,173.22,5.7711]
[1748483508806,0.04096376,173.26,173.23,0.04102827]
[1748483509400,5.81116376,173.26,173.23,0.04102827]
[1748483510313,0.04096376,173.26,173.23,5.81182827]
[1748483511201,0.04096376,173.26,173.23,0.04102827]
[1748483512198,5.81096376,173.26,173.23,0.04102827]
[1748483512908,5.7704,173.25,173.23,0.04102827]
[1748483513107,6.74730466,173.24,173.15,500.5243]
[1748483513408,6.74730466,173.24,173.16,34.86]
[1748483514107,0.04220974,173.22,173.21,5.7713]
[1748483515008,34.86,173.3,173.18,0.03676994]
[1748483515208,34.86,173.3,173.16,34.86]
[1748483515509,34.86,173.3,173.25,5.7701]
[1748483515904,0.04149988,173.29,173.26,0.04157489]
[1748483516912,5.81049988,173.29,173.26,0.04157489]
[1748483519211,6.74730466,173.28,173.26,0.04157489]
[1748483520111,12.51680466,173.28,173.26,0.04157489]
[1748483520613,5.7695,173.28,173.26,0.04157489]
[1748483520909,6.74730466,173.28,173.15,500.5243]
[1748483521212,6.74730466,173.28,173.17,34.28]
[1748483521512,5.7701,173.26,173.21,5.7714]
[1748483521815,0.04394869,173.25,173.22,0.03795013]
[1748483522714,5.81424869,173.25,173.22,0.03795013]
[1748483523208,0.04394869,173.25,173.22,0.03795013]
[1748483524012,0.04394869,173.25,173.24,5.7707]
[1748483527310,0.04394869,173.25,173.23,5.771]
[1748483527916,0.04394869,173.25,173.22,40.08925013]
[1748483528311,0.04394869,173.25,173.22,0.03795013]
[1748483528917,0.04394869,173.25,173.23,5.7707]
[1748483530126,0.04394869,173.25,173.22,5.80915013]
[1748483530315,0.04394869,173.25,173.22,0.03795013]
[1748483531918,0.04394869,173.25,173.22,5.80925013]
[1748483532119,0.04394869,173.25,173.22,0.03795013]
[1748483534020,6.74730466,173.24,173.22,0.03795013]
[1748483534520,6.74730466,173.24,173.22,5.80925013]
[1748483534722,6.74730466,173.24,173.22,0.03795013]
[1748483535522,6.74730466,173.24,173.17,34.28]
[1748483535723,6.74730466,173.24,173.18,5.7726]
[1748483536218,5.7716,173.22,173.18,5.7726]
[1748483536521,5.81085742,173.22,173.18,5.81595027]
[1748483536724,0.03925742,173.22,173.18,5.81595027]
[1748483537519,0.03925742,173.22,173.18,0.04335027]
[1748483538021,0.03925742,173.22,173.2,5.7717]
[1748483538524,0.03925742,173.22,173.18,0.04335027]
[1748483538717,0.03925742,173.22,173.19,5.7722]
[1748483538917,0.03925742,173.22,173.18,0.04335027]
[1748483539318,0.03925742,173.22,173.19,5.7722]
[1748483539725,0.03925742,173.22,173.2,5.772]
[1748483539922,0.03925742,173.22,173.18,0.04335027]
[1748483540323,0.03925742,173.22,173.19,5.7722]
[1748483540524,0.03925742,173.22,173.18,0.04335027]
[1748483540926,0.03925742,173.22,173.19,5.7721]
[1748483542221,0.03925742,173.22,173.2,5.7719]
[1748483543025,0.03925742,173.22,173.19,5.7722]
[1748483544128,0.03925742,173.22,173.18,0.04335027]
[1748483544622,0.03925742,173.22,173.21,5.7717]
[1748483549033,0.03925742,173.22,173.18,0.04335027]
[1748483549427,0.03925742,173.22,173.19,5.7721]
[1748483550335,0.03925742,173.22,173.2,5.772]
[1748483552931,0.03925742,173.22,173.21,5.7717]
[1748483557238,0.03925742,173.22,173.2,5.7719]
[1748483557740,0.03925742,173.22,173.19,1.9806]
[1748483558136,33.02,173.29,173.19,1.9806]
[1748483558334,33.02,173.29,173.2,3.7853]
[1748483559339,0.04205195,173.26,173.23,0.03654505]
[1748483559939,0.04205195,173.26,173.24,5.7705]
[1748483561141,0.04205195,173.26,173.23,5.80744505]
[1748483561736,0.04205195,173.26,173.24,5.7707]
[1748483565540,0.04205195,173.26,173.25,5.7703]
[1748483570146,0.04205195,173.26,173.24,5.7706]
[1748483570445,0.04205195,173.26,173.23,0.03654505]
[1748483570642,0.04205195,173.26,173.24,5.7704]
[1748483572246,0.04205195,173.26,173.23,5.80754505]
[1748483572437,0.04205195,173.26,173.23,0.03654505]
[1748483573047,0.04205195,173.26,173.24,5.7705]
[1748483573348,0.04205195,173.26,173.23,0.03654505]
[1748483574747,0.04205195,173.26,173.24,5.7707]
[1748483575042,0.04205195,173.26,173.23,0.03654505]
[1748483575238,0.04205195,173.26,173.24,5.7707]
[1748483575438,0.04205195,173.26,173.23,0.03654505]
[1748483577451,0.04205195,173.26,173.25,5.7703]
[1748483577646,0.04205195,173.26,173.23,0.03654505]
[1748483578354,0.04205195,173.26,173.24,5.7704]
[1748483578546,0.04205195,173.26,173.23,0.03654505]
[1748483578852,0.04205195,173.26,173.25,5.7703]
[1748483580556,0.04205195,173.26,173.23,0.03654505]
[1748483581047,5.7707,173.24,173.23,0.03654505]
[1748483582356,5.7704,173.25,173.23,0.03654505]
[1748483582753,0.04205195,173.26,173.23,0.03654505]
[1748483583656,0.04205195,173.26,173.25,5.7703]
[1748483589965,0.04205195,173.26,173.24,5.7706]
[1748483590155,0.04205195,173.26,173.23,0.03654505]
[1748483590564,0.04205195,173.26,173.25,5.7703]
[1748483603570,5.195e-05,173.26,173.25,5.7703]
[1748483604877,32.04,173.37,173.32,5.7677]
[1748483605173,37.8064,173.37,173.32,5.7677]
[1748483605370,37.8064,173.37,173.28,32.04]
[1748483605877,0.03717127,173.34,173.33,5.7677]
[1748483606069,0.03717127,173.34,173.31,0.0387771]
[1748483606574,0.03717127,173.34,173.32,5.7679]
[1748483607578,0.03717127,173.34,173.31,5.8070771]
[1748483608775,5.80457127,173.34,173.31,0.0387771]
[1748483609181,0.03717127,173.34,173.31,0.0387771]
[1748483609780,0.03717127,173.34,173.32,5.7677]
[1748483613385,0.03717127,173.34,173.33,5.7677]
[1748483614181,0.03717127,173.34,173.32,5.7679]
[1748483614881,0.03717127,173.34,173.31,5.8069771]
[1748483615084,0.03717127,173.34,173.31,0.0387771]
[1748483617181,5.7679,173.33,173.31,0.0387771]
[1748483617582,0.03717127,173.34,173.31,0.0387771]
[1748483618383,5.7677,173.33,173.31,0.0387771]
[1748483618590,0.03717127,173.34,173.31,0.0387771]
[1748483619384,5.7677,173.33,173.31,0.0387771]
[1748483619587,0.03717127,173.34,173.31,0.0387771]
[1748483620086,5.768,173.32,173.31,0.0387771]
[1748483621492,5.7678,173.33,173.31,0.0387771]
[1748483622292,5.768,173.32,173.31,0.0387771]
[1748483622489,6.74730466,173.32,173.24,31.5]
[1748483622889,12.51540466,173.32,173.24,31.5]
[1748483623093,35.558,173.33,173.28,5.7691]
[1748483623391,0.04157028,173.32,173.29,0.04342412]
[1748483623996,5.80967028,173.32,173.29,0.04342412]
[1748483624695,5.7684,173.31,173.29,0.04342412]
[1748483624895,0.04157028,173.32,173.29,0.04342412]
[1748483625098,5.80977028,173.32,173.29,0.04342412]
[1748483625297,0.04157028,173.32,173.29,0.04342412]
[1748483625497,5.80957028,173.32,173.29,0.04342412]
[1748483628590,0.04157028,173.32,173.29,0.04342412]
[1748483629897,5.7686,173.31,173.29,0.04342412]
[1748483630394,0.04157028,173.32,173.29,0.04342412]
[1748483632394,5.7684,173.31,173.29,0.04342412]
[1748483632596,0.04157028,173.32,173.29,0.04342412]
[1748483633394,0.04157028,173.32,173.29,5.81212412]
[1748483634997,0.04157028,173.32,173.3,5.7687]
[1748483635702,0.04157028,173.32,173.29,0.04342412]
[1748483636203,0.04157028,173.32,173.31,5.7683]
[1748483636789,0.04157028,173.32,173.29,0.04342412]
[1748483637593,0.04157028,173.32,173.31,5.7683]
[1748483637995,31.5,173.37,173.29,0.04342412]
[1748483638196,31.5,173.37,173.35,5.7668]
[1748483638900,4.0515,173.38,173.29,6.74730466]
[1748483639100,0.03924644,173.35,173.32,0.03719523]
[1748483639300,0.04229694,173.35,173.32,0.03811188]
[1748483639500,0.04229694,173.35,173.34,5.7673]
[1748483641901,0.04229694,173.35,173.33,5.7676]
[1748483642101,0.04229694,173.35,173.32,0.03811188]
[1748483642901,5.7676,173.34,173.32,0.03811188]
[1748483643407,5.7677,173.33,173.32,0.03811188]
[1748483643805,6.74730466,173.34,173.23,31.48]
[1748483644105,5.7678,173.33,173.28,5.7693]
[1748483644809,0.04134162,173.32,173.29,5.80683145]
[1748483645607,31.52134162,173.32,173.29,5.80683145]
[1748483645809,37.28944162,173.32,173.29,0.03783145]
[1748483646010,31.52134162,173.32,173.29,0.03783145]
[1748483646610,31.52134162,173.32,173.29,5.80663145]
[1748483647407,31.52134162,173.32,173.29,0.03783145]
[1748483648010,31.52134162,173.32,173.29,5.80683145]
[1748483649415,37.28944162,173.32,173.29,0.03783145]
[1748483649615,31.52134162,173.32,173.29,0.03783145]
[1748483649906,31.52134162,173.32,173.3,5.7686]
[1748483650108,31.52134162,173.32,173.29,0.03783145]
[1748483650517,31.52134162,173.32,173.29,5.80663145]
[1748483654019,31.52134162,173.32,173.3,5.7686]
[1748483654220,31.52134162,173.32,173.29,0.03783145]
[1748483654620,31.52134162,173.32,173.3,5.7685]
[1748483655424,31.52134162,173.32,173.29,5.80673145]
[1748483657525,31.52134162,173.32,173.29,0.03783145]
[1748483657825,37.28954162,173.32,173.29,0.03783145]
[1748483658626,5.7684,173.31,173.29,0.03783145]
[1748483660527,31.52134162,173.32,173.29,0.03783145]
[1748483661924,37.28944162,173.32,173.29,0.03783145]
[1748483662429,31.52134162,173.32,173.29,0.03783145]
[1748483664028,37.28934162,173.32,173.29,0.03783145]
[1748483665329,31.52134162,173.32,173.29,5.80683145]
[1748483665522,31.52134162,173.32,173.29,0.03783145]
[1748483665829,31.52134162,173.32,173.3,5.7687]
[1748483666631,31.52134162,173.32,173.31,5.7683]
[1748483668123,0.04134162,173.32,173.31,5.7683]
[1748483680536,4.162e-05,173.32,173.31,5.7683]
[1748483685051,3.7902,173.43,173.31,35.77211172]
[1748483685242,6.19851172,173.42,173.35,4.31211172]
[1748483685444,5.7653,173.41,173.33,4.31211172]
[1748483685743,4.31211172,173.4,173.33,4.31211172]
[1748483685942,5.7651,173.41,173.31,31.46]
[1748483686149,0.04130703,173.38,173.34,0.0417956]
[1748483686448,0.04130703,173.38,173.37,5.7662]
[1748483687143,0.04130703,173.38,173.34,0.0417956]
[1748483687654,5.7668,173.36,173.34,0.0417956]
[1748483687847,31.44,173.35,173.34,0.0417956]
[1748483689137,31.44,173.35,173.27,31.44]
[1748483689341,38.174403,173.35,173.27,31.44]
[1748483689541,5.7674,173.34,173.29,5.7687]
[1748483689743,31.44,173.35,173.27,31.44]
[1748483690148,0.04091418,173.33,173.29,0.03765646]
[1748483691746,0.04091418,173.33,173.32,5.768]
[1748483691943,0.04091418,173.33,173.29,0.03765646]
[1748483693251,0.04091418,173.33,173.29,5.80655646]
[1748483693553,0.04091418,173.33,173.29,0.03765646]
[1748483693746,6.734403,173.32,173.29,0.03765646]
[1748483693944,6.734403,173.32,173.19,31.46]
[1748483693945,6.734403,173.29,173.19,31.46]
[1748483694148,31.46,173.28,173.19,31.46]
[1748483694346,5.77,173.26,173.21,5.7716]
[1748483694555,31.46,173.28,173.19,31.46]
[1748483694851,0.0430292,173.25,173.22,5.80885702]
[1748483696653,0.0430292,173.25,173.23,5.7709]
[1748483697046,0.0430292,173.25,173.22,0.03755702]
[1748483699953,37.3707,173.24,173.22,0.03755702]
[1748483700841,12.505403,173.23,173.22,0.03755702]
[1748483701043,12.505403,173.23,173.18,5.7726]
[1748483701248,5.7714,173.22,173.18,5.7726]
[1748483701446,5.7714,173.22,173.17,5.773]
[1748483702055,0.0379788,173.21,173.18,0.03925246]
[1748483703652,0.0379788,173.21,173.2,5.772]
[1748483705659,0.0379788,173.21,173.18,0.03925246]
[1748483705850,6.7723818,173.21,173.18,0.03925246]
[1748483706053,31.6,173.2,173.11,31.6]
[1748483707145,0.04165244,173.17,173.15,5.7736]
[1748483707550,0.04165244,173.17,173.14,0.0375834]
[1748483707853,0.04165244,173.17,173.15,5.7737]
[1748483709860,0.04165244,173.17,173.16,5.7733]
[1748483710963,0.04165244,173.17,173.14,0.0375834]
[1748483711460,5.81485244,173.17,173.14,0.0375834]
[1748483712964,0.04165244,173.17,173.14,0.0375834]
[1748483715462,5.81465244,173.17,173.14,0.0375834]
[1748483715760,0.04165244,173.17,173.14,0.0375834]
[1748483718858,0.04165244,173.17,173.14,5.8114834]
[1748483719360,0.04165244,173.17,173.14,0.0375834]
[1748483720959,0.04165244,173.17,173.15,5.7734]
[1748483722370,0.04165244,173.17,173.14,5.8114834]
[1748483723367,0.04165244,173.17,173.15,5.7736]
[1748483723566,0.04165244,173.17,173.14,0.0375834]
[1748483724166,0.04165244,173.17,173.16,5.7733]
[1748483726069,31.62,173.24,173.14,0.0375834]
[1748483726470,5.7714,173.22,173.16,5.7731]
[1748483726969,0.03776419,173.21,173.17,0.03695169]
[1748483727372,0.03776419,173.21,173.17,5.80985169]
[1748483727667,0.03776419,173.21,173.17,0.03695169]
[1748483728071,5.80956419,173.21,173.17,0.03695169]
[1748483728367,0.03776419,173.21,173.17,0.03695169]
[1748483729071,5.80936419,173.21,173.17,0.03695169]
[1748483729364,0.03776419,173.21,173.17,0.03695169]
[1748483730566,0.03776419,173.21,173.18,5.7724]
[1748483730761,0.03776419,173.21,173.17,0.03695169]
[1748483731674,0.03776419,173.21,173.18,5.7724]
[1748483733271,0.03776419,173.21,173.17,5.80975169]
[1748483733675,0.03776419,173.21,173.17,0.03695169]
[1748483734269,0.03776419,173.21,173.18,5.7724]
[1748483737780,0.03776419,173.21,173.17,5.80975169]
[1748483738581,0.03776419,173.21,173.18,5.7726]
[1748483738870,0.03776419,173.21,173.17,0.03695169]
[1748483739270,0.03776419,173.21,173.19,5.7722]
[1748483739777,0.03776419,173.21,173.18,5.7725]
[1748483740878,0.03776419,173.21,173.17,5.80985169]
[1748483742572,0.03776419,173.21,173.18,5.7726]
[1748483742884,0.03776419,173.21,173.17,0.03695169]
[1748483743378,0.03776419,173.21,173.17,5.80985169]
[1748483743979,0.03776419,173.21,173.17,0.03695169]
[1748483744384,5.7726,173.18,173.17,0.03695169]
[1748483744679,31.46,173.2,173.17,0.03695169]
[1748483745077,5.7725,173.19,173.17,0.03695169]
[1748483745278,31.46,173.2,173.17,0.03695169]
[1748483747479,5.7723,173.19,173.17,0.03695169]
[1748483747779,31.46,173.2,173.17,0.03695169]
[1748483748083,5.7722,173.19,173.17,0.03695169]
[1748483748385,31.46,173.2,173.17,0.03695169]
[1748483749278,5.7726,173.18,173.17,0.03695169]
[1748483749879,5.7723,173.19,173.17,0.03695169]
[1748483751484,5.7726,173.18,173.17,0.03695169]
[1748483751782,31.46,173.2,173.17,0.03695169]
[1748483752283,6.734403,173.19,173.1,31.46]
[1748483752673,5.7735,173.16,173.1,31.46]
[1748483753279,0.04398336,173.15,173.11,0.03831142]
[1748483753985,0.04398336,173.15,173.12,5.7745]
[1748483754588,0.04398336,173.15,173.13,5.7741]
[1748483756285,0.04398336,173.15,173.12,5.7745]
[1748483757383,0.04398336,173.15,173.13,5.7742]
[1748483758381,0.04398336,173.15,173.12,5.7745]
[1748483759886,0.04398336,173.15,173.13,5.7741]
[1748483762286,0.04398336,173.15,173.14,5.7739]
[1748483762791,0.04398336,173.15,173.13,5.7741]
[1748483764785,0.04398336,173.15,173.14,5.7739]
[1748483766982,0.04398336,173.15,173.11,5.81301142]
[1748483767185,0.04398336,173.15,173.11,0.03831142]
[1748483767792,0.04398336,173.15,173.12,5.7745]
[1748483768192,0.04398336,173.15,173.11,0.03831142]
[1748483769493,0.04398336,173.15,173.14,5.7739]
[1748483774292,31.46,173.2,173.18,5.7725]
[1748483776191,31.46,173.2,173.17,5.81499269]
[1748483776488,0.0390555,173.21,173.17,0.04219269]
[1748483776691,0.0390555,173.21,173.18,5.7723]
[1748483777491,0.0390555,173.21,173.19,5.7722]
[1748483778895,0.0390555,173.21,173.2,5.7719]
[1748483779091,0.0390555,173.21,173.17,0.04219269]
[1748483779687,0.0390555,173.21,173.2,5.7719]
[1748483779893,0.0390555,173.21,173.17,0.04219269]
[1748483780095,0.0390555,173.21,173.19,5.772]
[1748483780297,0.0390555,173.21,173.17,0.04219269]
[1748483781103,0.0390555,173.21,173.18,5.7725]
[1748483781302,0.0390555,173.21,173.17,0.04219269]
[1748483781804,0.0390555,173.21,173.18,5.7723]
[1748483782103,0.0390555,173.21,173.17,0.04219269]
[1748483782603,5.8106555,173.21,173.17,5.81479269]
[1748483782800,5.8106555,173.21,173.17,0.04219269]
[1748483783301,0.0390555,173.21,173.17,0.04219269]
[1748483783693,0.0390555,173.21,173.17,5.81479269]
[1748483785808,0.0390555,173.21,173.18,5.7725]
[1748483786204,0.0390555,173.21,173.17,0.04219269]
[1748483786514,0.0390555,173.21,173.2,5.7719]
[1748483789214,31.44,173.28,173.18,31.44]
[1748483789512,31.4,173.3,173.19,6.734403]
[1748483789707,31.4,173.3,173.22,6.734403]
[1748483789909,31.4,173.3,173.28,5.769]
[1748483790105,7.7673,173.33,173.23,37.3555]
[1748483790407,0.04012463,173.31,173.29,5.7686]
[1748483790600,0.04012463,173.31,173.27,0.04056954]
[1748483791714,0.04012463,173.31,173.28,5.7692]
[1748483791912,0.04012463,173.31,173.27,0.04056954]
[1748483792105,0.04012463,173.31,173.28,5.7692]
[1748483794414,0.04012463,173.31,173.27,0.04056954]
[1748483794415,0.04012463,173.31,173.27,5.81006954]
[1748483794614,0.04012463,173.31,173.27,0.04056954]
[1748483795306,0.04012463,173.31,173.27,5.80986954]
[1748483796114,5.80862463,173.31,173.27,0.04056954]
[1748483796714,5.80862463,173.31,173.27,5.81006954]
[1748483797017,5.7692,173.28,173.19,31.38]
[1748483797317,5.7692,173.28,173.19,35.3417]
[1748483798017,0.04117744,173.25,173.22,0.03641056]
[1748483798413,0.04117744,173.25,173.23,5.7706]
[1748483798615,0.04117744,173.25,173.22,0.03641056]
[1748483800112,0.04117744,173.25,173.22,5.80761056]
[1748483800521,0.04117744,173.25,173.22,0.03641056]
[1748483801126,0.04117744,173.25,173.22,5.80741056]
[1748483801520,0.04117744,173.25,173.22,0.03641056]
[1748483802723,0.04117744,173.25,173.23,5.7709]
[1748483803113,0.04117744,173.25,173.22,0.03641056]
[1748483804327,0.04117744,173.25,173.24,5.7706]
[1748483806525,0.04117744,173.25,173.22,0.03641056]
[1748483808824,5.81147744,173.25,173.22,0.03641056]
[1748483809324,0.04117744,173.25,173.22,5.80761056]
[1748483812625,0.04117744,173.25,173.22,0.03641056]
[1748483813025,0.04117744,173.25,173.22,5.80741056]
[1748483814126,0.04117744,173.25,173.22,0.03641056]
[1748483815030,0.04117744,173.25,173.22,5.80751056]
[1748483816330,5.81157744,173.25,173.22,0.03641056]
[1748483817729,5.7708,173.24,173.22,0.03641056]
[1748483817933,0.04117744,173.25,173.22,0.03641056]
[1748483818828,5.7709,173.23,173.22,0.03641056]
[1748483819035,6.734403,173.24,173.15,31.38]
[1748483819435,5.7718,173.21,173.15,31.38]
[1748483819824,5.7719,173.2,173.15,37.1532]
[1748483820128,0.04255241,173.19,173.16,0.04400051]
[1748483820437,0.04255241,173.19,173.16,5.81720051]
[1748483820934,0.04255241,173.19,173.16,0.04400051]
[1748483821835,0.04255241,173.19,173.17,5.7727]
[1748483822325,0.04255241,173.19,173.18,5.7726]
[1748483822742,0.04255241,173.19,173.16,0.04400051]
[1748483823038,0.04255241,173.19,173.17,5.7727]
[1748483823536,0.04255241,173.19,173.16,5.81710051]
[1748483823834,0.04255241,173.19,173.16,0.04400051]
[1748483824937,0.04255241,173.19,173.17,5.7727]
[1748483826940,0.04255241,173.19,173.18,5.7726]
[1748483829434,31.38,173.26,173.18,5.7726]
[1748483829639,31.38,173.26,173.21,5.7715]
[1748483829933,5.7705,173.25,173.15,31.38]
[1748483830642,0.04224235,173.22,173.21,5.7714]
[1748483834638,0.04224235,173.22,173.2,5.7717]
[1748483835037,0.04224235,173.22,173.18,0.04167176]
[1748483836542,0.04224235,173.22,173.19,5.7722]
[1748483836744,0.04224235,173.22,173.18,0.04167176]
[1748483837136,0.04224235,173.22,173.18,5.81397176]
[1748483837534,5.81344235,173.22,173.18,5.81397176]
[1748483838141,5.7716,173.21,173.18,5.81397176]
[1748483838746,5.81354235,173.22,173.18,5.81397176]
[1748483839140,0.04224235,173.22,173.19,5.7721]
[1748483839342,0.04224235,173.22,173.18,0.04167176]
[1748483840951,5.81344235,173.22,173.18,0.04167176]
[1748483842050,5.7716,173.21,173.18,5.81397176]
[1748483842251,0.04224235,173.22,173.18,5.81397176]
[1748483843450,5.81364235,173.22,173.18,5.81397176]
[1748483844054,0.04224235,173.22,173.19,5.7722]
[1748483844350,0.04224235,173.22,173.18,0.04167176]
[1748483844550,0.04224235,173.22,173.2,5.7716]
[1748483844942,0.04224235,173.22,173.18,0.04167176]
[1748483845459,0.04224235,173.22,173.19,5.7722]
[1748483845658,0.04224235,173.22,173.18,0.04167176]
[1748483846460,5.7719,173.2,173.18,0.04167176]
[1748483846863,5.7722,173.19,173.18,0.04167176]
[1748483849758,5.7738,173.15,173.11,31.34]
[1748483850159,5.7738,173.15,173.1,5.775]
[1748483850661,6.734403,173.17,173.11,0.04218986]
[1748483850662,0.03877893,173.14,173.11,0.04218986]
[1748483851059,5.81277893,173.14,173.11,0.04218986]
[1748483851462,37.13277893,173.14,173.11,0.04218986]
[1748483852163,5.7742,173.13,173.11,0.04218986]
[1748483852564,31.35877893,173.14,173.11,0.04218986]
[1748483852754,37.13277893,173.14,173.11,0.04218986]
[1748483852958,31.35877893,173.14,173.11,0.04218986]
[1748483853763,37.13287893,173.14,173.11,0.04218986]
[1748483854763,5.7745,173.12,173.11,0.04218986]
[1748483854962,38.09318193,173.14,173.03,31.32]
[1748483855261,38.054403,173.14,173.03,31.32]
[1748483855461,5.7751,173.11,173.06,5.7764]
[1748483855662,38.054403,173.14,173.06,5.7764]
[1748483855858,0.03709593,173.12,173.08,0.03736712]
[1748483856059,5.7751,173.11,173.08,0.03736712]
[1748483856966,5.7752,173.1,173.08,0.03736712]
[1748483857766,0.03709593,173.12,173.08,0.03736712]
[1748483858466,5.7755,173.1,173.08,0.03736712]
[1748483860165,5.7749,173.11,173.08,0.03736712]
[1748483860366,0.03709593,173.12,173.08,0.03736712]
[1748483861366,5.7751,173.11,173.08,0.03736712]
[1748483862367,5.7753,173.1,173.08,0.03736712]
[1748483865572,5.7749,173.11,173.08,0.03736712]
[1748483865768,0.03709593,173.12,173.08,0.03736712]
[1748483867075,6.734403,173.11,173.08,0.03736712]
[1748483867673,5.7755,173.1,173.08,0.03736712]
[1748483868276,6.734403,173.11,173.08,0.03736712]
[1748483868477,31.32,173.1,173.08,0.03736712]
[1748483869877,5.7755,173.09,173.08,0.03736712]
[1748483870882,31.32,173.1,173.08,0.03736712]
[1748483871879,37.0953,173.1,173.08,0.03736712]
[1748483872981,5.7756,173.09,173.08,0.03736712]
[1748483873776,5.7765,173.07,173.01,5.97]
[1748483873975,31.32,173.1,173.01,5.97]
[1748483874378,5.7759,173.09,173.01,5.97]
[1748483874880,0.04270439,173.07,173.05,5.7767]
[1748483875378,0.04270439,173.07,173.03,0.03990751]
[1748483875970,0.04270439,173.07,173.05,5.7767]
[1748483878071,5.81890439,173.07,173.03,0.03990751]
[1748483878883,5.81890439,173.07,173.03,5.81730751]
[1748483881483,5.7768,173.06,173.03,0.03990751]
[1748483882079,5.777,173.05,173.03,0.03990751]
[1748483882277,0.04270439,173.07,173.03,0.03990751]
[1748483882679,5.81910439,173.07,173.03,5.81730751]
[1748483883488,5.7768,173.06,173.03,0.03990751]
[1748483883784,5.7766,173.06,173.03,0.03990751]
[1748483884280,0.04270439,173.07,173.03,0.03990751]
[1748483885785,31.32,173.12,173.03,0.03990751]
[1748483885980,31.32,173.12,173.03,31.35990751]
[1748483886286,37.0946,173.12,173.04,5.8989]
[1748483886786,0.03657678,173.1,173.08,5.7756]
[1748483887288,0.03657678,173.1,173.07,5.81769866]
[1748483887482,0.03657678,173.1,173.07,0.04159866]
[1748483888085,5.81187678,173.1,173.07,0.04159866]
[1748483889485,5.7756,173.09,173.07,0.04159866]
[1748483892378,5.7759,173.08,173.07,0.04159866]
[1748483895288,37.0759,173.08,173.07,0.04159866]
[1748483896497,31.3,173.08,173.07,0.04159866]
[1748483898891,37.0759,173.08,173.07,0.04159866]
[1748483901989,31.3,173.08,173.07,0.04159866]
[1748483904597,37.0759,173.08,173.07,0.04159866]
[1748483907502,31.3,173.08,173.07,0.04159866]
[1748483908204,0.03657678,173.1,173.07,5.81779866]
[1748483908502,0.03657678,173.1,173.07,0.04159866]
[1748483909802,0.03657678,173.1,173.08,5.7758]
[1748483910005,0.03657678,173.1,173.07,0.04159866]
[1748483910299,5.81187678,173.1,173.07,0.04159866]
[1748483910500,5.81187678,173.1,173.07,5.81769866]
[1748483913397,0.03657678,173.1,173.07,5.81769866]
[1748483914505,5.81187678,173.1,173.07,5.81769866]
[1748483914905,0.03657678,173.1,173.07,5.81769866]
[1748483917597,0.03657678,173.1,173.08,5.7758]
[1748483917798,5.81187678,173.1,173.07,0.04159866]
[1748483918703,0.03657678,173.1,173.07,0.04159866]
[1748483919007,0.03657678,173.1,173.09,5.7756]
[1748483919709,0.03657678,173.1,173.08,5.7758]
[1748483921612,0.03657678,173.1,173.07,0.04159866]
[1748483922209,5.81187678,173.1,173.07,0.04159866]
[1748483926813,5.7756,173.09,173.07,0.04159866]
[1748483929342,6.77097978,173.1,173.0,2.0408]
[1748483929620,15.3926,173.16,172.97,3.9249]
[1748483929621,6.76173976,173.07,172.97,3.9249]
[1748483929812,31.28,173.06,172.97,3.9249]
[1748483930013,5.7773,173.04,172.97,3.9249]
[1748483930213,31.28,173.06,172.97,3.9249]
[1748483930411,0.03844542,173.03,173.0,0.04355545]
[1748483930814,0.03844542,173.03,173.01,5.7779]
[1748483933527,0.03844542,173.03,173.02,5.7779]
[1748483937125,0.03844542,173.03,173.01,5.7781]
[1748483937828,0.03844542,173.03,173.0,0.04355545]
[1748483939835,5.7782,173.01,173.0,0.04355545]
[1748483946030,31.28,173.02,173.0,0.04355545]
[1748483947030,5.779,172.99,172.94,5.7804]
[1748483947226,38.04173976,173.02,172.91,3.9926]
[1748483947938,5.7792,172.99,172.94,5.7803]
[1748483948236,0.04268696,172.98,172.95,0.04208254]
[1748483949538,5.82198696,172.98,172.95,0.04208254]
[1748483950233,5.7796,172.97,172.95,0.04208254]
[1748483952535,5.82188696,172.98,172.95,0.04208254]
[1748483953732,0.04268696,172.98,172.95,5.82218254]
[1748483955038,5.82188696,172.98,172.95,5.82218254]
[1748483955440,5.7799,172.96,172.95,0.04208254]
[1748483960442,32.64,172.97,172.95,0.04208254]
[1748483961347,5.7799,172.96,172.95,0.04208254]
[1748483962339,38.4196,172.97,172.95,0.04208254]
[1748483962743,0.04268696,172.98,172.95,0.04208254]
[1748483963541,5.82218696,172.98,172.95,0.04208254]
[1748483966446,5.82218696,172.98,172.95,5.82228254]
[1748483967645,5.82218696,172.98,172.95,0.04208254]